[Event "FIDE World Cadets GU10 2022"]
[Site "Batumi"]
[Date "2022.09.16"]
[Round "1"]
[White "Li, Iris"]
[Black "Grigalashvili, Mariam"]
[Result "1-0"]
[ECO "C10"]
[WhiteElo "1651"]
[BlackElo "1165"]
[Annotator "NA COMBH"]
[PlyCount "167"]
[EventDate "2022.09.16"]
[EventType "swiss"]
[EventCountry "GEO"]
[SourceTitle "playchess.com"]
[Source "ChessBase"]
[SourceQuality "1"]
[TimeControl "5400+30"]

1. e4 {[%emt 0:01:00]} e6 {[%emt 0:01:00]} 2. d4 {[%emt 0:00:30]} d5 {[%emt 0:00:30]} 3. Nc3 {[%emt 0:00:30]} dxe4 {[%emt 0:00:30]} 4. Nxe4 {[%emt 0:00:30]} Bd7 {[%emt 0:00:00]} 5. Nf3 {[%emt 0:00:00]} Bc6 {[%emt 0:00:00]} 6. Bd3 {[%emt 0:00:00]} Nd7 {[%emt 0:00:30]} 7. c3 {[%emt 0:00:00]} Ngf6 {[%emt 0:00:00]} 8. Nxf6+ {[%emt 0:02:00]} Nxf6 {[%emt 0:00:00]} 9. O-O {[%emt 0:00:30]} Bxf3 {[%emt 0:01:30]} 10. Qxf3 {[%emt 0:00:30]} c6 {[%emt 0:01:30]} 11. Re1 {[%emt 0:06:30]} Be7 {[%emt 0:01:30]} 12. Bf4 {[%emt 0:05:30]} Nd5 {[%emt 0:02:30]} 13. Bg3 {[%emt 0:03:30]} O-O {[%emt 0:04:30]} 14. Rad1 {[%emt 0:04:30]} Bf6 {[%emt 0:02:30]} 15. Be5 {[%emt 0:13:30]} Bxe5 {[%emt 0:03:30]} 16. dxe5 {[%emt 0:03:30]} Qe7 {[%emt 0:08:30]} 17. Qh5 {[%emt 0:03:30]} g6 {[%emt 0:04:30]} 18. Qh6 {[%emt 0:02:30]} Rfd8 {[%emt 0:03:30]} 19. h4 {[%emt 0:01:30]} Qf8 {[%emt 0:01:30]} 20. Qg5 {[%emt 0:01:30]} h6 {[%emt 0:01:30]} 21. Qg3 {[%emt 0:02:30]} h5 {[%emt 0:01:30]} 22. a3 {[%emt 0:05:30]} Qg7 {[%emt 0:02:30]} 23. Qg5 {[%emt 0:12:30]} Re8 {[%emt 0:01:30]} 24. g4 {[%emt 0:02:30]} hxg4 {[%emt 0:01:30]} 25. Qxg4 {[%emt 0:00:30]} Qh6 {[%emt 0:02:30]} 26. Kh2 {[%emt 0:05:30]} Qf4+ {[%emt 0:01:30]} 27. Qg3 {[%emt 0:03:30]} Qxg3+ {[%emt 0:00:30]} 28. Kxg3 {[%emt 0:00:30]} Rad8 {[%emt 0:01:30]} 29. Rg1 {[%emt 0:01:20]} Ne7 {[%emt 0:01:30]} 30. h5 {[%emt 0:02:48]} Nf5+ {[%emt 0:02:30]} 31. Kh3 {[%emt 0:04:17]} Kg7 {[%emt 0:01:30]} 32. Bxf5 {[%emt 0:06:49]} exf5 {[%emt 0:00:30]} 33. hxg6 {[%emt 0:02:14]} fxg6 {[%emt 0:00:30]} 34. f4 {[%emt 0:00:00]} Kf7 {[%emt 0:02:30]} 35. Kg3 {[%emt 0:01:57]} Rh8 {[%emt 0:02:30]} 36. Rd4 {[%emt 0:01:54]} c5 {[%emt 0:00:30]} 37. Rdd1 {[%emt 0:01:43]} b6 {[%emt 0:01:30]} 38. b4 {[%emt 0:00:48]} Rhe8 {[%emt 0:00:30]} 39. Kf2 {[%emt 0:00:46]} Rh8 {[%emt 0:00:30]} 40. bxc5 {[%emt 0:00:18]} bxc5 {[%emt 0:00:30]} 41. Kg2 {[%emt 0:00:30]} Rhe8 {[%emt 0:00:30]} 42. Rh1 {[%emt 0:00:00]} Kg7 {[%emt 0:01:30]} 43. Kf3 {[%emt 0:00:36]} Rf8 {[%emt 0:01:30]} 44. Ke3 {[%emt 0:00:26]} Rfe8 {[%emt 0:00:30]} 45. c4 {[%emt 0:00:19]} Rxd1 {[%emt 0:00:30]} 46. Rxd1 {[%emt 0:00:30]} Re7 {[%emt 0:00:30]} 47. Rd5 {[%emt 0:00:12]} Rc7 {[%emt 0:00:30]} 48. Kd3 {[%emt 0:00:09]} Kf7 {[%emt 0:00:30]} 49. Kc3 {[%emt 0:00:12]} Ke6 {[%emt 0:01:30]} 50. Kb3 {[%emt 0:00:46]} Rc6 {[%emt 0:00:30]} 51. Ka4 {[%emt 0:01:49]} Ra6+ {[%emt 0:01:30]} 52. Kb5 {[%emt 0:00:50]} Rxa3 {[%emt 0:00:30]} 53. Rd6+ {[%emt 0:00:24]} Kf7 {[%emt 0:00:30]} 54. Kxc5 {[%emt 0:00:30]} Rf3 {[%emt 0:00:30]} 55. Rd4 {[%emt 0:00:15]} Ke6 {[%emt 0:00:30]} 56. Kc6 {[%emt 0:00:31]} a5 {[%emt 0:00:30]} 57. Kb5 {[%emt 0:00:07]} Ra3 {[%emt 0:00:30]} 58. Rd6+ {[%emt 0:00:30]} Kf7 {[%emt 0:00:30]} 59. Ra6 {[%emt 0:00:00]} Rf3 {[%emt 0:00:00]} 60. c5 {[%emt 0:00:52]} Rxf4 {[%emt 0:00:00]} 61. c6 {[%emt 0:00:15]} Rf1 {[%emt 0:01:30]} 62. c7 {[%emt 0:00:27]} Rc1 {[%emt 0:00:30]} 63. Rc6 {[%emt 0:00:12]} Rb1+ {[%emt 0:00:30]} 64. Kxa5 {[%emt 0:00:30]} Ra1+ {[%emt 0:00:30]} 65. Kb4 {[%emt 0:00:00]} Rb1+ {[%emt 0:00:30]} 66. Ka3 {[%emt 0:00:00]} Ra1+ {[%emt 0:00:30]} 67. Kb2 {[%emt 0:00:18]} Ra8 {[%emt 0:00:30]} 68. c8=Q {[%emt 0:00:00]} Rxc8 {[%emt 0:00:30]} 69. Rxc8 {[%emt 0:00:18]} Ke6 {[%emt 0:00:30]} 70. Rc5 {[%emt 0:00:00]} f4 {[%emt 0:00:00]} 71. Kc3 {[%emt 0:00:00]} f3 {[%emt 0:01:00]} 72. Kd3 {[%emt 0:00:12]} g5 {[%emt 0:00:00]} 73. Ke4 {[%emt 0:00:02]} g4 {[%emt 0:01:00]} 74. Rc6+ {[%emt 0:00:30]} Kd7 {[%emt 0:00:30]} 75. Rf6 {[%emt 0:00:00]} Ke7 {[%emt 0:01:30]} 76. Kf4 {[%emt 0:00:04]} f2 {[%emt 0:00:00]} 77. Kxg4 {[%emt 0:00:30]} Kd7 {[%emt 0:00:00]} 78. Rxf2 {[%emt 0:00:00]} Ke6 {[%emt 0:00:30]} 79. Rf5 {[%emt 0:00:07]} Ke7 {[%emt 0:00:30]} 80. Rf6 {[%emt 0:00:00]} Ke8 {[%emt 0:00:30]} 81. Kf5 {[%emt 0:00:07]} Kd8 {[%emt 0:00:30]} 82. Ke6 {[%emt 0:00:05]} Ke8 {[%emt 0:00:30]} 83. Kd6 {[%emt 0:00:30]} Kd8 {[%emt 0:00:30]} 84. Rf8# {[%emt 0:00:00]} 1-0

[Event "FIDE World Cadets GU10 2022"]
[Site "Batumi"]
[Date "2022.09.16"]
[Round "1"]
[White "Fang, Arabella"]
[Black "Maliush, Alisa"]
[Result "1-0"]
[ECO "C43"]
[WhiteElo "1505"]
[BlackElo "1159"]
[Annotator "NA COMBH"]
[PlyCount "81"]
[EventDate "2022.09.16"]
[EventType "swiss"]
[EventCountry "GEO"]
[SourceTitle "playchess.com"]
[Source "ChessBase"]
[SourceQuality "1"]
[TimeControl "5400+30"]

1. e4 {[%emt 0:01:00]} e5 {[%emt 0:01:00]} 2. Nf3 {[%emt 0:00:30]} Nf6 {[%emt 0:00:30]} 3. d4 {[%emt 0:00:00]} Nxe4 {[%emt 0:01:30]} 4. Nxe5 {[%emt 0:01:00]} d5 {[%emt 0:00:00]} 5. Bd3 {[%emt 0:03:30]} Nf6 {[%emt 0:02:00]} 6. O-O {[%emt 0:01:30]} Be7 {[%emt 0:00:00]} 7. Re1 {[%emt 0:02:30]} O-O {[%emt 0:00:00]} 8. Bf4 {[%emt 0:00:30]} Nbd7 {[%emt 0:01:30]} 9. Nxd7 {[%emt 0:02:30]} Bxd7 {[%emt 0:00:00]} 10. Bxc7 {[%emt 0:04:30]} Qxc7 {[%emt 0:01:00]} 11. Rxe7 {[%emt 0:00:30]} Qd6 {[%emt 0:00:30]} 12. Re1 {[%emt 0:01:30]} Qb4 {[%emt 0:00:30]} 13. Nc3 {[%emt 0:07:30]} Qxb2 {[%emt 0:00:30]} 14. Qd2 {[%emt 0:00:30]} Rac8 {[%emt 0:01:30]} 15. Ne2 {[%emt 0:01:30]} Qb6 {[%emt 0:00:30]} 16. Rab1 {[%emt 0:01:30]} Qc7 {[%emt 0:00:30]} 17. Qf4 {[%emt 0:04:30]} Qxf4 {[%emt 0:00:30]} 18. Nxf4 {[%emt 0:00:00]} b6 {[%emt 0:00:30]} 19. Re5 {[%emt 0:04:00]} Bc6 {[%emt 0:00:30]} 20. Re7 {[%emt 0:02:30]} Ra8 {[%emt 0:01:30]} 21. Ba6 {[%emt 0:04:30]} Rfe8 {[%emt 0:03:30]} 22. Rc7 {[%emt 0:04:30]} Re4 {[%emt 0:01:30]} 23. g3 {[%emt 0:03:30]} Ba4 {[%emt 0:02:30]} 24. Rb4 {[%emt 0:01:30]} Be8 {[%emt 0:04:30]} 25. h4 {[%emt 0:05:30]} Re1+ {[%emt 0:04:30]} 26. Kg2 {[%emt 0:01:30]} Ra1 {[%emt 0:00:30]} 27. Rb2 {[%emt 0:02:30]} Rd1 {[%emt 0:00:30]} 28. Nd3 {[%emt 0:03:30]} Bd7 {[%emt 0:03:30]} 29. Rb3 {[%emt 0:05:30]} h6 {[%emt 0:01:30]} 30. Ra3 {[%emt 0:03:30]} Bf5 {[%emt 0:00:30]} 31. f3 {[%emt 0:09:24]} Rd2+ {[%emt 0:01:30]} 32. Kf1 {[%emt 0:03:09]} Bh3+ {[%emt 0:01:30]} 33. Ke1 {[%emt 0:02:05]} Rg2 {[%emt 0:00:30]} 34. g4 {[%emt 0:02:08]} Re8+ {[%emt 0:01:30]} 35. Ne5 {[%emt 0:01:29]} Nh7 {[%emt 0:03:30]} 36. Bb5 {[%emt 0:04:06]} Re6 {[%emt 0:00:30]} 37. Raxa7 {[%emt 0:01:04]} h5 {[%emt 0:00:30]} 38. Rxf7 {[%emt 0:03:19]} hxg4 {[%emt 0:01:30]} 39. Ra8+ {[%emt 0:00:17]} Nf8 {[%emt 0:00:30]} 40. Rfxf8+ {[%emt 0:00:30]} Kh7 {[%emt 0:00:30]} 41. Rh8# {[%emt 0:00:39]} 1-0

[Event "FIDE World Cadets GU10 2022"]
[Site "Batumi"]
[Date "2022.09.16"]
[Round "1"]
[White "Mirzakhani, Bahar"]
[Black "Gaer, Sofiya Ig"]
[Result "1-0"]
[ECO "C06"]
[WhiteElo "1461"]
[BlackElo "1157"]
[Annotator "NA COMBH"]
[PlyCount "79"]
[EventDate "2022.09.16"]
[EventType "swiss"]
[EventCountry "GEO"]
[SourceTitle "playchess.com"]
[Source "ChessBase"]
[SourceQuality "1"]
[TimeControl "5400+30"]

1. e4 {[%emt 0:01:00]} e6 {[%emt 0:01:00]} 2. d4 {[%emt 0:00:30]} d5 {[%emt 0:00:30]} 3. Nd2 {[%emt 0:00:00]} Nf6 {[%emt 0:00:30]} 4. e5 {[%emt 0:00:00]} Nfd7 {[%emt 0:00:00]} 5. Bd3 {[%emt 0:00:30]} c5 {[%emt 0:01:00]} 6. c3 {[%emt 0:00:30]} Nc6 {[%emt 0:00:30]} 7. Ne2 {[%emt 0:00:00]} Be7 {[%emt 0:08:30]} 8. O-O {[%emt 0:00:00]} O-O {[%emt 0:00:00]} 9. Kh1 {[%emt 0:06:30]} f6 {[%emt 0:02:00]} 10. f4 {[%emt 0:00:30]} c4 {[%emt 0:10:30]} 11. Bc2 {[%emt 0:00:30]} b5 {[%emt 0:00:00]} 12. Ng3 {[%emt 0:00:30]} a5 {[%emt 0:08:00]} 13. Nf3 {[%emt 0:00:30]} f5 {[%emt 0:12:30]} 14. Bd2 {[%emt 0:03:30]} b4 {[%emt 0:05:30]} 15. Qe2 {[%emt 0:01:30]} h6 {[%emt 0:03:30]} 16. Qf2 {[%emt 0:09:30]} Ba6 {[%emt 0:05:30]} 17. Rfe1 {[%emt 0:01:30]} Qb6 {[%emt 0:02:30]} 18. Ba4 {[%emt 0:02:30]} Bb5 {[%emt 0:01:30]} 19. Bd1 {[%emt 0:03:30]} a4 {[%emt 0:09:30]} 20. Nh5 {[%emt 0:02:30]} Kh8 {[%emt 0:04:30]} 21. Nh4 {[%emt 0:01:30]} Bxh4 {[%emt 0:01:30]} 22. Qxh4 {[%emt 0:00:00]} b3 {[%emt 0:00:30]} 23. a3 {[%emt 0:00:00]} Rae8 {[%emt 0:01:30]} 24. Re3 {[%emt 0:00:30]} Rg8 {[%emt 0:00:30]} 25. Nf6 {[%emt 0:01:30]} Nxf6 {[%emt 0:00:30]} 26. exf6 {[%emt 0:00:00]} Kh7 {[%emt 0:00:30]} 27. f7 {[%emt 0:00:00]} Ref8 {[%emt 0:00:30]} 28. fxg8=Q+ {[%emt 0:00:30]} Rxg8 {[%emt 0:00:00]} 29. Rxe6 {[%emt 0:00:30]} Qc7 {[%emt 0:00:00]} 30. Bf3 {[%emt 0:00:30]} Qd7 {[%emt 0:01:30]} 31. Rae1 {[%emt 0:00:30]} Ba6 {[%emt 0:00:30]} 32. g4 {[%emt 0:00:30]} fxg4 {[%emt 0:00:30]} 33. Bxg4 {[%emt 0:00:30]} Bc8 {[%emt 0:01:30]} 34. Bf5+ {[%emt 0:00:30]} g6 {[%emt 0:00:30]} 35. Re7+ {[%emt 0:00:30]} Nxe7 {[%emt 0:00:00]} 36. Bxd7 {[%emt 0:00:30]} Bxd7 {[%emt 0:00:00]} 37. Rxe7+ {[%emt 0:00:30]} Rg7 {[%emt 0:00:30]} 38. Rxg7+ {[%emt 0:00:30]} Kxg7 {[%emt 0:00:30]} 39. Kg1 {[%emt 0:00:30]} Kh7 {[%emt 0:00:30]} 40. Qe7+ {[%emt 0:00:30]} 1-0

[Event "FIDE World Cadets GU10 2022"]
[Site "Batumi"]
[Date "2022.09.16"]
[Round "1"]
[White "Sunea, Sara Maria"]
[Black "Baruch, Amit"]
[Result "0-1"]
[ECO "C45"]
[WhiteElo "1440"]
[BlackElo "1153"]
[Annotator "NA COMBH"]
[PlyCount "148"]
[EventDate "2022.09.16"]
[EventType "swiss"]
[EventCountry "GEO"]
[SourceTitle "playchess.com"]
[Source "ChessBase"]
[SourceQuality "1"]
[TimeControl "5400+30"]

1. e4 {[%emt 0:01:00]} e5 {[%emt 0:01:00]} 2. Nf3 {[%emt 0:00:30]} Nc6 {[%emt 0:00:30]} 3. d4 {[%emt 0:00:00]} exd4 {[%emt 0:00:30]} 4. Nxd4 {[%emt 0:00:00]} Qh4 {[%emt 0:00:00]} 5. Nb5 {[%emt 0:19:30]} Bc5 {[%emt 0:08:00]} 6. Qe2 {[%emt 0:09:30]} Bb6 {[%emt 0:01:30]} 7. Be3 {[%emt 0:08:30]} Ba5+ {[%emt 0:08:30]} 8. c3 {[%emt 0:05:30]} a6 {[%emt 0:02:30]} 9. Nd4 {[%emt 0:11:30]} Nge7 {[%emt 0:04:30]} 10. Nd2 {[%emt 0:06:30]} O-O {[%emt 0:01:30]} 11. g3 {[%emt 0:03:30]} Qf6 {[%emt 0:01:30]} 12. Bg2 {[%emt 0:01:30]} b5 {[%emt 0:05:30]} 13. O-O {[%emt 0:07:30]} Bb7 {[%emt 0:01:30]} 14. e5 {[%emt 0:02:30]} Qxe5 {[%emt 0:04:30]} 15. f4 {[%emt 0:00:30]} Qd6 {[%emt 0:01:30]} 16. Ne4 {[%emt 0:02:34]} Nxd4 {[%emt 0:01:30]} 17. Bxd4 {[%emt 0:00:20]} Qe6 {[%emt 0:01:30]} 18. Qc2 {[%emt 0:03:26]} Qg6 {[%emt 0:06:30]} 19. Rae1 {[%emt 0:07:52]} Rae8 {[%emt 0:02:30]} 20. Qf2 {[%emt 0:01:50]} f5 {[%emt 0:04:30]} 21. Nc5 {[%emt 0:03:08]} Bc8 {[%emt 0:01:30]} 22. Nd3 {[%emt 0:01:50]} d6 {[%emt 0:04:30]} 23. b4 {[%emt 0:00:27]} Bxb4 {[%emt 0:08:30]} 24. cxb4 {[%emt 0:01:02]} Bd7 {[%emt 0:00:30]} 25. Qc2 {[%emt 0:01:00]} c6 {[%emt 0:01:30]} 26. Nf2 {[%emt 0:00:52]} Qf7 {[%emt 0:02:30]} 27. Qb3 {[%emt 0:00:10]} Qxb3 {[%emt 0:05:30]} 28. axb3 {[%emt 0:00:30]} Ng6 {[%emt 0:00:30]} 29. Ra1 {[%emt 0:00:30]} Ra8 {[%emt 0:00:30]} 30. Rfc1 {[%emt 0:00:30]} Rfc8 {[%emt 0:00:30]} 31. Rc2 {[%emt 0:00:30]} Ne7 {[%emt 0:00:30]} 32. Rca2 {[%emt 0:00:15]} Be6 {[%emt 0:02:45]} 33. Rxa6 {[%emt 0:00:50]} Rxa6 {[%emt 0:00:30]} 34. Rxa6 {[%emt 0:00:00]} Bxb3 {[%emt 0:00:46]} 35. Ra7 {[%emt 0:00:00]} Re8 {[%emt 0:00:35]} 36. Rd7 {[%emt 0:01:17]} Bc4 {[%emt 0:03:02]} 37. Bf1 {[%emt 0:01:24]} d5 {[%emt 0:05:07]} 38. Be5 {[%emt 0:00:25]} Kf8 {[%emt 0:01:51]} 39. Bd6 {[%emt 0:00:26]} h6 {[%emt 0:00:56]} 40. Bd3 {[%emt 0:00:35]} g6 {[%emt 0:01:11]} 41. g4 {[%emt 0:00:36]} Bxd3 {[%emt 0:00:30]} 42. Nxd3 {[%emt 0:00:00]} fxg4 {[%emt 0:00:29]} 43. Ne5 {[%emt 0:00:00]} d4 {[%emt 0:01:33]} 44. Nxg6+ {[%emt 0:00:00]} Kf7 {[%emt 0:00:38]} 45. Nxe7 {[%emt 0:00:08]} Ke6 {[%emt 0:00:24]} 46. Ra7 {[%emt 0:01:39]} Kxd6 {[%emt 0:00:21]} 47. Nf5+ {[%emt 0:00:30]} Kd5 {[%emt 0:00:30]} 48. Rd7+ {[%emt 0:00:00]} Ke6 {[%emt 0:01:09]} 49. Rxd4 {[%emt 0:00:45]} Kxf5 {[%emt 0:00:11]} 50. Rd6 {[%emt 0:00:36]} Re6 {[%emt 0:00:33]} 51. Rd4 {[%emt 0:00:00]} h5 {[%emt 0:01:04]} 52. Kg2 {[%emt 0:00:34]} h4 {[%emt 0:00:12]} 53. Kf2 {[%emt 0:00:10]} Re4 {[%emt 0:00:38]} 54. Rd6 {[%emt 0:00:30]} Rxf4+ {[%emt 0:00:30]} 55. Kg2 {[%emt 0:00:00]} Rxb4 {[%emt 0:00:00]} 56. Rxc6 {[%emt 0:00:21]} Rb2+ {[%emt 0:00:09]} 57. Kg1 {[%emt 0:00:00]} g3 {[%emt 0:00:45]} 58. hxg3 {[%emt 0:00:08]} hxg3 {[%emt 0:00:30]} 59. Rc5+ {[%emt 0:00:00]} Ke4 {[%emt 0:00:00]} 60. Rg5 {[%emt 0:00:20]} g2 {[%emt 0:00:17]} 61. Rg8 {[%emt 0:00:29]} b4 {[%emt 0:00:19]} 62. Re8+ {[%emt 0:00:00]} Kf3 {[%emt 0:01:15]} 63. Rf8+ {[%emt 0:00:30]} Ke4 {[%emt 0:00:09]} 64. Re8+ {[%emt 0:00:00]} Kd5 {[%emt 0:00:30]} 65. Rd8+ {[%emt 0:00:09]} Kc6 {[%emt 0:00:11]} 66. Rc8+ {[%emt 0:00:07]} Kd7 {[%emt 0:00:30]} 67. Rc4 {[%emt 0:00:30]} b3 {[%emt 0:00:30]} 68. Rd4+ {[%emt 0:00:00]} Ke6 {[%emt 0:00:07]} 69. Re4+ {[%emt 0:00:00]} Kd5 {[%emt 0:00:30]} 70. Re8 {[%emt 0:00:00]} Rc2 {[%emt 0:00:06]} 71. Rd8+ {[%emt 0:00:11]} Ke6 {[%emt 0:00:00]} 72. Re8+ {[%emt 0:00:18]} Kd7 {[%emt 0:00:29]} 73. Re1 {[%emt 0:00:00]} b2 {[%emt 0:00:20]} 74. Kh2 {[%emt 0:00:04]} Rc1 0-1

[Event "FIDE World Cadets GU10 2022"]
[Site "Batumi"]
[Date "2022.09.16"]
[Round "1"]
[White "Xu, Luna Yuexiu"]
[Black "Dumitru, Rucsandra Sofia"]
[Result "1-0"]
[ECO "B43"]
[WhiteElo "1421"]
[BlackElo "1151"]
[Annotator "NA COMBH"]
[PlyCount "122"]
[EventDate "2022.09.16"]
[EventType "swiss"]
[EventCountry "GEO"]
[SourceTitle "playchess.com"]
[Source "ChessBase"]
[SourceQuality "1"]
[TimeControl "5400+30"]

1. e4 {[%emt 0:01:00]} c5 {[%emt 0:01:00]} 2. Nf3 {[%emt 0:00:00]} e6 {[%emt 0:01:30]} 3. d4 {[%emt 0:00:00]} cxd4 {[%emt 0:03:30]} 4. Nxd4 {[%emt 0:00:30]} a6 {[%emt 0:00:30]} 5. Nc3 {[%emt 0:00:00]} Qc7 {[%emt 0:00:00]} 6. Be2 {[%emt 0:02:00]} Nf6 {[%emt 0:00:00]} 7. a3 {[%emt 0:01:30]} b5 {[%emt 0:01:30]} 8. Bg5 {[%emt 0:04:30]} b4 {[%emt 0:07:30]} 9. axb4 {[%emt 0:02:30]} Bxb4 {[%emt 0:02:30]} 10. Bd2 {[%emt 0:02:30]} Bb7 {[%emt 0:02:30]} 11. f3 {[%emt 0:03:30]} d5 {[%emt 0:11:30]} 12. exd5 {[%emt 0:01:30]} Nxd5 {[%emt 0:01:30]} 13. Nxd5 {[%emt 0:00:00]} Bxd2+ {[%emt 0:00:30]} 14. Qxd2 {[%emt 0:00:00]} Bxd5 {[%emt 0:00:30]} 15. O-O {[%emt 0:00:30]} O-O {[%emt 0:00:30]} 16. c4 {[%emt 0:00:30]} Bb7 {[%emt 0:03:30]} 17. Qc3 {[%emt 0:02:30]} Nc6 {[%emt 0:05:30]} 18. Nxc6 {[%emt 0:00:30]} Qxc6 {[%emt 0:00:30]} 19. Rad1 {[%emt 0:01:30]} Rad8 {[%emt 0:03:30]} 20. Qe3 {[%emt 0:02:30]} Rfe8 {[%emt 0:13:30]} 21. Rd2 {[%emt 0:04:30]} Rxd2 {[%emt 0:02:30]} 22. Qxd2 {[%emt 0:00:30]} Qb6+ {[%emt 0:00:30]} 23. Kh1 {[%emt 0:00:30]} Rd8 {[%emt 0:02:30]} 24. Bd3 {[%emt 0:00:30]} Qd4 {[%emt 0:02:30]} 25. Rd1 {[%emt 0:01:30]} Kh8 {[%emt 0:00:30]} 26. Qc2 {[%emt 0:00:30]} e5 {[%emt 0:04:30]} 27. c5 {[%emt 0:01:30]} Qd7 {[%emt 0:04:30]} 28. Be2 {[%emt 0:01:30]} Qe8 {[%emt 0:01:30]} 29. Rxd8 {[%emt 0:00:30]} Qxd8 {[%emt 0:00:30]} 30. c6 {[%emt 0:00:00]} Bc8 {[%emt 0:01:30]} 31. c7 {[%emt 0:00:00]} Qd7 {[%emt 0:00:30]} 32. Qc5 {[%emt 0:00:30]} Kg8 {[%emt 0:02:30]} 33. Qxe5 {[%emt 0:01:30]} Qe6 {[%emt 0:01:30]} 34. Qd4 {[%emt 0:03:30]} Qd7 {[%emt 0:01:35]} 35. Qxd7 {[%emt 0:00:30]} Bxd7 {[%emt 0:00:07]} 36. Bxa6 {[%emt 0:00:00]} Kf8 {[%emt 0:00:30]} 37. c8=Q+ {[%emt 0:00:00]} Bxc8 {[%emt 0:00:00]} 38. Bxc8 {[%emt 0:00:00]} Ke7 {[%emt 0:00:28]} 39. Kg1 {[%emt 0:00:00]} Kd6 {[%emt 0:00:37]} 40. Kf2 {[%emt 0:00:30]} Ke5 {[%emt 0:00:25]} 41. Ke3 {[%emt 0:00:00]} g5 {[%emt 0:00:35]} 42. g4 {[%emt 0:00:00]} h6 {[%emt 0:00:30]} 43. h3 {[%emt 0:00:30]} f6 {[%emt 0:00:30]} 44. Bb7 {[%emt 0:00:30]} f5 {[%emt 0:00:13]} 45. Bc8 {[%emt 0:00:30]} fxg4 {[%emt 0:00:34]} 46. hxg4 {[%emt 0:00:30]} Kd5 {[%emt 0:00:44]} 47. f4 {[%emt 0:00:30]} Kc4 {[%emt 0:01:20]} 48. fxg5 {[%emt 0:00:30]} hxg5 {[%emt 0:00:30]} 49. Ke4 {[%emt 0:00:00]} Kb3 {[%emt 0:00:36]} 50. Kf5 {[%emt 0:00:00]} Kxb2 {[%emt 0:00:09]} 51. Kxg5 {[%emt 0:00:00]} Kc3 {[%emt 0:00:27]} 52. Kf6 {[%emt 0:00:00]} Kd4 {[%emt 0:00:30]} 53. g5 {[%emt 0:00:00]} Kd5 {[%emt 0:00:08]} 54. g6 {[%emt 0:00:00]} Kc6 {[%emt 0:00:38]} 55. g7 {[%emt 0:00:30]} Kd5 {[%emt 0:00:30]} 56. g8=Q+ {[%emt 0:00:00]} Kd4 {[%emt 0:00:05]} 57. Qe6 {[%emt 0:00:00]} Kc5 {[%emt 0:00:34]} 58. Ke5 {[%emt 0:00:30]} Kb4 {[%emt 0:00:30]} 59. Kd4 {[%emt 0:00:30]} Kb5 {[%emt 0:00:15]} 60. Bd7+ {[%emt 0:00:00]} Kb4 {[%emt 0:00:30]} 61. Qc4+ {[%emt 0:00:00]} Ka5 {[%emt 0:00:00]} 1-0

[Event "FIDE World Cadets GU10 2022"]
[Site "Batumi"]
[Date "2022.09.16"]
[Round "1"]
[White "Alessi, Clio"]
[Black "Gulishyan, Eseniya"]
[Result "0-1"]
[ECO "B01"]
[WhiteElo "1413"]
[BlackElo "1138"]
[Annotator "NA COMBH"]
[PlyCount "56"]
[EventDate "2022.09.16"]
[EventType "swiss"]
[EventCountry "GEO"]
[SourceTitle "playchess.com"]
[Source "ChessBase"]
[SourceQuality "1"]
[TimeControl "5400+30"]

1. e4 {[%emt 0:01:00]} d5 {[%emt 0:01:00]} 2. exd5 {[%emt 0:00:30]} Qxd5 {[%emt 0:00:30]} 3. Nc3 {[%emt 0:00:30]} Qd6 {[%emt 0:00:30]} 4. Nf3 {[%emt 0:00:30]} c6 {[%emt 0:00:00]} 5. d4 {[%emt 0:00:00]} Nf6 {[%emt 0:00:00]} 6. Be3 {[%emt 0:00:00]} Bg4 {[%emt 0:00:00]} 7. h3 {[%emt 0:00:30]} Bh5 {[%emt 0:00:00]} 8. g4 {[%emt 0:00:30]} Bg6 {[%emt 0:00:00]} 9. Bg2 {[%emt 0:00:00]} Nbd7 {[%emt 0:00:00]} 10. Qd2 {[%emt 0:00:00]} e6 {[%emt 0:00:00]} 11. O-O-O {[%emt 0:00:30]} Qc7 {[%emt 0:00:00]} 12. Bf4 {[%emt 0:00:30]} Bd6 {[%emt 0:00:00]} 13. Bxd6 {[%emt 0:01:30]} Qxd6 {[%emt 0:00:00]} 14. g5 {[%emt 0:00:00]} Nd5 {[%emt 0:00:30]} 15. h4 {[%emt 0:00:00]} h6 {[%emt 0:00:30]} 16. h5 {[%emt 0:00:30]} Bh7 {[%emt 0:00:30]} 17. gxh6 {[%emt 0:00:30]} gxh6 {[%emt 0:01:30]} 18. Qxh6 {[%emt 0:01:30]} O-O-O {[%emt 0:02:30]} 19. Qd2 {[%emt 0:01:30]} N7b6 {[%emt 0:02:30]} 20. Ne5 {[%emt 0:00:30]} Rhf8 {[%emt 0:02:30]} 21. Nxd5 {[%emt 0:00:30]} cxd5 {[%emt 0:00:30]} 22. Qc3+ {[%emt 0:00:30]} Kb8 {[%emt 0:00:30]} 23. Rh3 {[%emt 0:02:30]} Rc8 {[%emt 0:00:30]} 24. Qg3 {[%emt 0:04:30]} Rxc2+ {[%emt 0:01:30]} 25. Kb1 {[%emt 0:00:30]} Rd2+ {[%emt 0:01:30]} 26. Nd3 {[%emt 0:01:30]} Qxg3 {[%emt 0:01:30]} 27. Rxg3 {[%emt 0:00:30]} Rxd1+ {[%emt 0:00:30]} 28. Kc2 {[%emt 0:00:30]} Rxd3 {[%emt 0:00:30]} 0-1

[Event "FIDE World Cadets GU10 2022"]
[Site "Batumi"]
[Date "2022.09.16"]
[Round "1"]
[White "Ejsymont, Blanka"]
[Black "Varon, Alma"]
[Result "1-0"]
[ECO "B45"]
[WhiteElo "1410"]
[BlackElo "1130"]
[Annotator "NA COMBH"]
[PlyCount "75"]
[EventDate "2022.09.16"]
[EventType "swiss"]
[EventCountry "GEO"]
[SourceTitle "playchess.com"]
[Source "ChessBase"]
[SourceQuality "1"]
[TimeControl "5400+30"]

1. e4 {[%emt 0:01:00]} c5 {[%emt 0:01:00]} 2. Nf3 {[%emt 0:00:30]} e6 {[%emt 0:00:30]} 3. d4 {[%emt 0:00:00]} cxd4 {[%emt 0:00:30]} 4. Nxd4 {[%emt 0:00:00]} Nf6 {[%emt 0:00:30]} 5. Nc3 {[%emt 0:00:00]} Nc6 {[%emt 0:00:30]} 6. Ndb5 {[%emt 0:00:00]} d6 {[%emt 0:00:30]} 7. Bg5 {[%emt 0:01:30]} Be7 {[%emt 0:01:30]} 8. Be2 {[%emt 0:01:30]} O-O {[%emt 0:01:30]} 9. Bxf6 {[%emt 0:00:30]} Bxf6 {[%emt 0:02:30]} 10. Qxd6 {[%emt 0:02:30]} Bxc3+ {[%emt 0:05:30]} 11. bxc3 {[%emt 0:00:30]} Qxd6 {[%emt 0:01:30]} 12. Nxd6 {[%emt 0:00:00]} Rd8 {[%emt 0:03:30]} 13. Nc4 {[%emt 0:00:00]} b6 {[%emt 0:00:30]} 14. O-O {[%emt 0:00:30]} Bb7 {[%emt 0:01:30]} 15. Rad1 {[%emt 0:02:30]} Rac8 {[%emt 0:02:30]} 16. Nd6 {[%emt 0:00:30]} Rc7 {[%emt 0:02:30]} 17. Nxb7 {[%emt 0:00:30]} Rxb7 {[%emt 0:01:30]} 18. Bb5 {[%emt 0:00:00]} Rbd7 {[%emt 0:10:30]} 19. Rxd7 {[%emt 0:00:00]} Rxd7 {[%emt 0:00:30]} 20. Bxc6 {[%emt 0:00:30]} Rc7 {[%emt 0:01:30]} 21. Rd1 {[%emt 0:00:30]} g6 {[%emt 0:01:30]} 22. Ba4 {[%emt 0:00:30]} Rxc3 {[%emt 0:00:30]} 23. Bb3 {[%emt 0:00:00]} Rc7 {[%emt 0:03:30]} 24. f3 {[%emt 0:00:00]} a5 {[%emt 0:01:30]} 25. a4 {[%emt 0:00:30]} Rc6 {[%emt 0:00:30]} 26. Kf2 {[%emt 0:00:30]} Kg7 {[%emt 0:00:30]} 27. Ke3 {[%emt 0:00:00]} Kf6 {[%emt 0:02:30]} 28. Rd4 {[%emt 0:00:00]} h6 {[%emt 0:02:30]} 29. Rc4 {[%emt 0:00:30]} Rd6 {[%emt 0:04:30]} 30. Rd4 {[%emt 0:00:30]} Rc6 {[%emt 0:00:30]} 31. f4 {[%emt 0:00:00]} g5 {[%emt 0:04:30]} 32. g3 {[%emt 0:01:00]} Kg6 {[%emt 0:03:30]} 33. e5 {[%emt 0:01:30]} Kf5 {[%emt 0:04:30]} 34. Rc4 {[%emt 0:00:30]} Rxc4 {[%emt 0:01:30]} 35. Bxc4 {[%emt 0:00:30]} Kg4 {[%emt 0:00:30]} 36. Bf1 {[%emt 0:00:30]} Kf5 {[%emt 0:01:30]} 37. h3 {[%emt 0:00:30]} g4 {[%emt 0:02:30]} 38. Bd3# {[%emt 0:00:00]} 1-0